fUSD/lending_fUSD_20250103
["ID","MTS","AMOUNT","RATE_DAILY","PERIOD"]
[347520983,1735899077748,-1032.62,0.00010091,2]
[347520984,1735899077759,-1273.71,0.00010091,2]
[347520985,1735899077769,-500.0,0.00010091,2]
[347520986,1735899077779,-500.0,0.00010091,2]
[347520987,1735899077789,-500.0,0.00010091,2]
[347520988,1735899077799,-642.8,0.00010091,2]
[347520989,1735899077815,-500.0,0.00010091,2]
[347520990,1735899077826,-500.0,0.00010091,2]
[347520991,1735899077836,-500.0,0.00010091,2]
[347520992,1735899077847,-1321.31,0.00010091,2]
[347520993,1735899077859,-1443.88,0.00010091,2]
[347520994,1735899077869,-504.28847674,0.00010091,2]
[347520995,1735899077878,-1441.56,0.00010091,2]
[347520996,1735899077889,-1131.48,0.00010091,2]
[347520997,1735899077900,-500.0,0.00010091,2]
[347520998,1735899077910,-500.0,0.00010091,2]
[347520999,1735899077920,-500.0,0.00010091,2]
[347521000,1735899077930,-500.0,0.00010091,2]
[347521001,1735899077939,-502.4217842,0.00010091,2]
[347521002,1735899077949,-520.74067739,0.00010091,2]
[347521003,1735899077959,-539.73,0.00010091,2]
[347521004,1735899077969,-943.53,0.00010091,2]
[347521005,1735899077979,-795.15,0.00010091,2]
[347521006,1735899077988,-733.64,0.00010091,2]
[347521007,1735899077998,-522.39,0.00010091,2]
[347521008,1735899078009,-678.68,0.00010091,2]
[347521009,1735899078019,-1252.38,0.00010091,2]
[347521010,1735899078029,-6525.65,0.00010091,2]
[347521011,1735899078310,-500.0,0.00010091,2]
[347521012,1735899078322,-500.0,0.00010091,2]
[347521013,1735899078331,-585.71,0.00010091,2]
[347521014,1735899078341,-1544.27,0.00010091,2]
[347521015,1735899078351,-5808.88,0.00010091,2]
[347521016,1735899078361,-540.89,0.00010091,2]
[347521017,1735899078371,-573.79,0.00010091,2]
[347521018,1735899078381,-2009.08,0.00010091,2]
[347521019,1735899078391,-500.0,0.00010091,2]
[347521020,1735899078401,-10175.48,0.00010091,2]
[347521021,1735899078411,-1349.59,0.00010091,2]
[347521022,1735899078421,-500.0,0.00010091,2]
[347521023,1735899078431,-500.0,0.00010091,2]
[347521024,1735899078441,-500.0,0.00010091,2]
[347521025,1735899078452,-815.01,0.00010091,2]
[347521026,1735899078461,-1470.99,0.00010091,2]
[347521027,1735899078471,-501.6776169,0.00010091,2]
[347521028,1735899078481,-8073.75,0.00010091,2]
[347521029,1735899078490,-500.0,0.00010091,2]
[347521030,1735899078500,-500.0,0.00010091,2]
[347521031,1735899078512,-500.0,0.00010091,2]
[347521032,1735899078522,-500.0,0.00010091,2]
[347521033,1735899078532,-989.46,0.00010091,2]
[347521034,1735899078542,-500.0,0.00010091,2]
[347521035,1735899078552,-1117.95,0.00010091,2]
[347521036,1735899078562,-741.62,0.00010091,2]
[347521037,1735899078571,-580.78,0.00010091,2]
[347521038,1735899078581,-1147.25,0.00010091,2]
[347521039,1735899078592,-1180.98,0.00010091,2]
[347521040,1735899078602,-500.0,0.00010091,2]
[347521041,1735899078613,-500.0,0.00010091,2]
[347521042,1735899078622,-500.0,0.00010091,2]
[347521043,1735899078633,-1324.35,0.00010091,2]
[347521044,1735899078642,-852.43,0.00010091,2]
[347521045,1735899078652,-500.0,0.00010091,2]
[347521046,1735899078662,-500.0,0.00010091,2]
[347521047,1735899078672,-822.78,0.00010091,2]
[347521048,1735899078681,-790.68,0.00010091,2]
[347521049,1735899078691,-1625.92,0.00010091,2]
[347521050,1735899078700,-5308.49,0.00010091,2]
[347521051,1735899078710,-500.0,0.00010091,2]
[347521052,1735899078720,-500.0,0.00010091,2]
[347521053,1735899078730,-828.54,0.00010091,2]
[347521054,1735899078739,-806.97,0.00010091,2]
[347521055,1735899078749,-687.88,0.00010091,2]
[347521056,1735899078759,-829.61,0.00010091,2]
[347521057,1735899078769,-610.99,0.00010091,2]
[347521058,1735899078779,-500.0,0.00010091,2]
[347521059,1735899078789,-10690.6,0.00010091,2]
[347521060,1735899078799,-606.33,0.00010091,2]
[347521061,1735899078812,-1165.73,0.00010091,2]
[347521062,1735899078823,-575.04,0.00010091,2]
[347521063,1735899078832,-500.0,0.00010091,2]
[347521064,1735899078842,-500.0,0.00010091,2]
[347521065,1735899078853,-500.0,0.00010091,2]
[347521066,1735899078863,-500.0,0.00010091,2]
[347521067,1735899078872,-500.0,0.00010091,2]
[347521068,1735899078883,-1388.52,0.00010091,2]
[347521069,1735899078893,-516.28,0.00010091,2]
[347521070,1735899078903,-2092.91,0.00010091,2]
[347521071,1735899078913,-512.38,0.00010091,2]
[347521072,1735899078922,-500.0,0.00010091,2]
[347521073,1735899078931,-500.0,0.00010091,2]
[347521074,1735899078941,-2516.28,0.00010091,2]
[347521075,1735899078950,-500.0,0.00010091,2]
[347521076,1735899078960,-1007.49,0.00010091,2]
[347521077,1735899078970,-3486.65,0.00010091,2]
[347521078,1735899078980,-500.0,0.00010091,2]
[347521079,1735899078989,-913.75,0.00010091,2]
[347521080,1735899078999,-634.62,0.00010091,2]
[347521081,1735899079010,-500.0,0.00010091,2]
[347521082,1735899079019,-500.0,0.00010091,2]
[347521083,1735899079029,-905.63,0.00010091,2]
[347521084,1735899079038,-1621.99,0.00010091,2]
[347521085,1735899079050,-500.0,0.00010091,2]
[347521086,1735899079060,-500.0,0.00010091,2]
[347521087,1735899079069,-1629.01,0.00010091,2]
[347521088,1735899079080,-500.0,0.00010091,2]
[347521089,1735899079089,-500.0,0.00010091,2]
[347521090,1735899079099,-824.39,0.00010091,2]
[347521091,1735899079109,-669.85,0.00010091,2]
[347521092,1735899079119,-500.0,0.00010091,2]
[347521093,1735899079128,-500.0,0.00010091,2]
[347521094,1735899079138,-836.84,0.00010091,2]
[347521095,1735899079148,-664.81,0.00010091,2]
[347521096,1735899079158,-673.1,0.00010091,2]
[347521097,1735899079168,-500.0,0.00010091,2]
[347521098,1735899079178,-500.0,0.00010091,2]
[347521099,1735899079188,-500.0,0.00010091,2]
[347521100,1735899079198,-1595.45,0.00010091,2]
[347521101,1735899079208,-500.0,0.00010091,2]
[347521102,1735899079218,-785.12,0.00010091,2]
[347521103,1735899079228,-603.63,0.00010091,2]
[347521104,1735899079237,-1071.75,0.00010091,2]
[347521105,1735899079247,-1779.33,0.00010091,2]
[347521106,1735899079259,-938.09,0.00010091,2]
[347521107,1735899079270,-1353.46,0.00010091,2]
[347521108,1735899079281,-1071.46,0.00010091,2]
[347521109,1735899079291,-500.0,0.00010091,2]
[347521110,1735899079301,-713.7,0.00010091,2]
[347521111,1735899079311,-1422.94,0.00010091,2]
[347521112,1735899079321,-593.7,0.00010091,2]
[347521113,1735899079331,-1609.12,0.00010091,2]
[347521114,1735899079341,-2920.91,0.00010091,2]
[347521115,1735899079351,-500.0,0.00010091,2]
[347521116,1735899079361,-2451.94,0.00010091,2]
[347521117,1735899079371,-1714.79,0.00010091,2]
[347521118,1735899079381,-500.0,0.00010091,2]
[347521119,1735899079391,-500.0,0.00010091,2]
[347521120,1735899079400,-1456.42,0.00010091,2]
[347521121,1735899079411,-500.0,0.00010091,2]
[347521122,1735899079421,-500.0,0.00010091,2]
[347521123,1735899079431,-1419.9,0.00010091,2]
[347521124,1735899079440,-1068.93,0.00010091,2]
[347521125,1735899079450,-1288.57,0.00010091,2]
[347521126,1735899079460,-2262.99,0.00010091,2]
[347521127,1735899079470,-5075.92,0.00010091,2]
[347521128,1735899079480,-500.0,0.00010091,2]
[347521129,1735899079490,-1580.76,0.00010091,2]
[347521130,1735899079500,-500.0,0.00010091,2]
[347521131,1735899079511,-500.0,0.00010091,2]
[347521132,1735899079520,-1076.28,0.00010091,2]
[347521133,1735899079530,-1094.84,0.00010091,2]
[347521134,1735899079540,-1851.28,0.00010091,2]
[347521135,1735899079550,-1346.81,0.00010091,2]
[347521136,1735899079560,-500.0,0.00010091,2]
[347521137,1735899079569,-500.0,0.00010091,2]
[347521138,1735899079579,-500.0,0.00010091,2]
[347521139,1735899079588,-5395.21,0.00010091,2]
[347521140,1735899079597,-2187.74,0.00010091,2]
[347521141,1735899079607,-1083.27,0.00010091,2]
[347521142,1735899079616,-909.34,0.00010091,2]
[347521143,1735899079626,-991.2,0.00010091,2]
[347521144,1735899079635,-4382.33,0.00010091,2]
[347521145,1735899079645,-810.22,0.00010091,2]
[347521146,1735899079654,-2463.78,0.00010091,2]
[347521147,1735899079664,-505.48,0.00010091,2]
[347521148,1735899079673,-1511.93,0.00010091,2]
[347521149,1735899079683,-713.42,0.00010091,2]
[347521150,1735899079693,-681.82,0.00010091,2]
[347521151,1735899079703,-500.0,0.00010091,2]
[347521152,1735899079712,-1729.67,0.00010091,2]
[347521153,1735899079721,-500.0,0.00010091,2]
[347521154,1735899079731,-1890.41,0.00010091,2]
[347521155,1735899079740,-861.91,0.00010091,2]
[347521156,1735899079749,-187.38580831,0.00010091,2]
[347521157,1735899079760,-623.27,0.00010091,2]
[347521158,1735899079769,-2615.61,0.00010091,2]
[347521159,1735899079779,-408.28427626,0.00010091,2]
[347521160,1735899079788,-928.04,0.00010091,2]
[347521161,1735899079798,-1603.33,0.00010091,2]
[347521162,1735899079810,-1790.99,0.00010091,2]
[347521163,1735899079821,-500.0,0.00010091,2]
[347521164,1735899079831,-1181.17,0.00010091,2]
[347521165,1735899079840,-900.44,0.00010091,2]
[347521166,1735899079851,-5029.15,0.00010091,2]
[347521167,1735899079861,-500.0,0.00010091,2]
[347521168,1735899079871,-659.5,0.00010091,2]
[347521169,1735899079880,-500.0,0.00010091,2]
[347521170,1735899079890,-1537.5,0.00010091,2]
[347521171,1735899079899,-518.18,0.00010091,2]
[347521172,1735899079909,-500.0,0.00010091,2]
[347521173,1735899079919,-1052.56,0.00010091,2]
[347521174,1735899079928,-1221.8,0.00010091,2]
[347521175,1735899079938,-1221.9,0.00010091,2]
[347521176,1735899079948,-703.29,0.00010091,2]
[347521177,1735899079959,-500.0,0.00010091,2]
[347521178,1735899079968,-1568.73,0.00010091,2]
[347521179,1735899079978,-770.89,0.00010091,2]
[347521180,1735899079987,-2550.83,0.00010091,2]
[347521181,1735899079997,-2864.54,0.00010091,2]
[347521182,1735899080007,-276.00638909,0.00010091,2]
[347521183,1735899080017,-1309.1,0.00010091,2]
[347521184,1735899080026,-500.0,0.00010091,2]
[347521185,1735899080035,-3808.66,0.00010091,2]
[347521186,1735899080044,-500.0,0.00010091,2]
[347521187,1735899080054,-619.32,0.00010091,2]
[347521188,1735899080063,-1171.02,0.00010091,2]
[347521189,1735899080073,-500.0,0.00010091,2]
[347521190,1735899080085,-500.0,0.00010091,2]
[347521191,1735899080094,-8958.03,0.00010091,2]
[347521192,1735899080105,-500.0,0.00010091,2]
[347521193,1735899080115,-830.69,0.00010091,2]
[347521194,1735899080125,-1117.28,0.00010091,2]
[347521195,1735899080134,-2517.45,0.00010091,2]
[347521196,1735899080144,-6689.28,0.00010091,2]
[347521197,1735899080153,-1560.18,0.00010091,2]
[347521198,1735899080162,-500.0,0.00010091,2]
[347521199,1735899080172,-724.73,0.00010091,2]
[347521200,1735899080181,-1050.38,0.00010091,2]
[347521201,1735899080190,-1077.33,0.00010091,2]
[347521202,1735899080200,-500.0,0.00010091,2]
[347521203,1735899080210,-3636.71,0.00010091,2]
[347521204,1735899080219,-1529.69,0.00010091,2]
[347521205,1735899080228,-1098.71,0.00010091,2]
[347521206,1735899080238,-2285.33,0.00010091,2]
[347521207,1735899080247,-1913.18,0.00010091,2]
[347521208,1735899080257,-1082.25,0.00010091,2]
[347521209,1735899080267,-500.0,0.00010091,2]
[347521210,1735899080276,-1277.18,0.00010091,2]
[347521211,1735899080285,-500.0,0.00010091,2]
[347521212,1735899080295,-1029.72,0.00010092,2]
[347521213,1735899080304,-798.98,0.00010092,2]
[347521214,1735899080316,-882.59,0.00010092,2]
[347521215,1735899080326,-612.21,0.00010092,2]
[347521216,1735899080335,-500.0,0.00010092,2]
[347521217,1735899080344,-500.0,0.00010092,2]
[347521218,1735899080354,-613.58,0.00010092,2]
[347521219,1735899080364,-500.0,0.00010092,2]
[347521220,1735899080373,-595.83,0.00010092,2]
[347521221,1735899080383,-500.0,0.00010092,2]
[347521222,1735899080393,-679.99,0.00010092,2]
[347521223,1735899080402,-500.0,0.00010092,2]
[347521224,1735899080412,-675.44,0.00010092,2]
[347521225,1735899080422,-1018.47,0.00010092,2]
[347521226,1735899080431,-602.59,0.00010092,2]
[347521227,1735899080441,-500.0,0.00010092,2]
[347521228,1735899080450,-500.0,0.00010092,2]
[347521229,1735899080460,-2186.36,0.00010092,2]
[347521230,1735899080469,-1190.28,0.00010092,2]
[347521231,1735899080479,-1344.27,0.00010092,2]
[347521232,1735899080488,-500.0,0.00010092,2]
[347521233,1735899080498,-1189.45,0.00010092,2]
[347521234,1735899080508,-500.0,0.00010092,2]
[347521235,1735899080517,-1005.51,0.00010092,2]
[347521236,1735899080527,-871.65,0.00010092,2]
[347521237,1735899080536,-1819.57,0.00010092,2]
[347521238,1735899080545,-500.0,0.00010092,2]
[347521239,1735899080555,-500.0,0.00010092,2]
[347521240,1735899080564,-500.0,0.00010092,2]
[347521241,1735899080574,-825.05,0.00010092,2]
[347521242,1735899080584,-686.33,0.00010092,2]
[347521243,1735899080593,-1411.86,0.00010092,2]
[347521244,1735899080603,-500.0,0.00010092,2]
[347521245,1735899080613,-968.58,0.00010092,2]
[347521246,1735899080623,-630.92,0.00010092,2]
[347521247,1735899080632,-1681.53,0.00010092,2]
[347521248,1735899080719,-396.55624592,0.00010092,2]
[347521249,1735899080728,-642.45,0.00010092,2]
[347521250,1735899080737,-571.21,0.00010092,2]
[347521251,1735899080749,-1438.18,0.00010093,2]
[347521252,1735899080760,-1063.23,0.00010093,2]
[347521253,1735899080770,-946.14,0.00010093,2]
[347521254,1735899080779,-1612.52,0.00010093,2]
[347521255,1735899080788,-4413.73,0.00010093,2]
[347521256,1735899080797,-2563.85,0.00010093,2]
[347521257,1735899080806,-3630.6988922,0.00010093,2]
[347521258,1735899081392,-237.5011078,0.00010093,2]
[347521259,1735899081402,-2253.55029141,0.00010093,2]
[347521260,1735899081513,-1429.7283,0.00010093,2]
[347521261,1735899081524,-1923.54,0.00010093,2]
[347521262,1735899081991,-78.80927967,0.00010093,2]
[347521263,1735899082016,-6988.72,8.993e-05,2]
[347521264,1735899082026,-3845.03212892,0.00010093,2]
[347521265,1735899082035,-1104.06,0.00010093,2]
[347521266,1735899082045,-1616.42,0.00010093,2]
[347521267,1735899082057,-500.0,0.00010093,2]
[347521268,1735899082067,-5700.94,0.00010093,2]
[347521269,1735899082077,-1344.22,0.00010093,2]
[347521270,1735899082087,-1684.4,0.00010093,2]
[347521271,1735899082098,-3955.13,0.00010093,2]
[347521272,1735899082109,-500.0,0.00010093,2]
[347521273,1735899082118,-3036.34,0.00010093,2]
[347521274,1735899082129,-2680.62,0.00010093,2]
[347521275,1735899082139,-2064.58,0.00010093,2]
[347521276,1735899082149,-2494.75,0.00010093,2]
[347521277,1735899082159,-678.55951116,0.00010093,2]
[347521278,1735899082171,-1425.49048884,0.00010093,2]
[347521279,1735899082181,-248.33485852,0.000101,2]
[347521280,1735899082191,-1467.71,0.00010102,2]
[347521281,1735899082201,-437.61,0.00010137,2]
[347521282,1735899082212,-839.54,0.00010137,2]
[347521283,1735899082221,-771.63,0.00010137,2]
[347521284,1735899082231,-437.61,0.00010137,2]
[347521285,1735899082241,-150.86,0.00010137,2]
[347521286,1735899082251,-273.72,0.00010137,2]
[347521287,1735899082262,-860.73,0.00010137,2]
[347521288,1735899082272,-134.55737731,0.00010157,3]
[347521289,1735899082301,-65.44262269,0.00010157,3]
[347521290,1735899082311,-7685.23853375,0.00010299,2]
[347521291,1735899082322,-3799.7959995,0.00010299,2]
[347521292,1735899082334,-39011.49750786,0.00010299,2]
[347521293,1735899082344,-512.05775342,0.00010306,2]
[347521294,1735899082354,-10881.93625462,0.00010308,2]
[347521295,1735899082364,-150.0,0.00010347,5]
[347521296,1735899082374,-1094.62,0.00010362,2]
[347521297,1735899082384,-5519.88,0.00010362,2]
[347521298,1735899082394,-8601.42,0.00010362,2]
[347521299,1735899082404,-4538.46,0.00010362,2]
[347521300,1735899082414,-5336.48,0.00010362,2]
[347521301,1735899082425,-1921.95,0.00010362,2]
[347521302,1735899082435,-8397.78,0.00010362,2]
[347521303,1735899082444,-587.29,0.00010362,2]
[347521304,1735899082455,-935.4,0.00010362,2]
[347521305,1735899082465,-3088.2,0.00010362,2]
[347521306,1735899082475,-2714.05,0.00010362,2]
[347521307,1735899082485,-565.9,0.00010362,2]
[347521308,1735899082495,-1297.19,0.00010362,2]
[347521309,1735899082506,-577.59,0.00010363,2]
[347521310,1735899082515,-500.0,0.00010363,2]
[347521311,1735899082525,-500.0,0.00010363,2]
[347521312,1735899082535,-645.02,0.00010363,2]
[347521313,1735899082544,-726.27,0.00010363,2]
[347521314,1735899082554,-500.0,0.00010363,2]
[347521315,1735899082564,-1142.1,0.00010363,2]
[347521316,1735899082574,-500.0,0.00010363,2]
[347521317,1735899082583,-1109.54,0.00010363,2]
[347521318,1735899082593,-1942.66,0.00010363,2]
[347521319,1735899082603,-500.0,0.00010363,2]
[347521320,1735899082614,-683.56,0.00010363,2]
[347521321,1735899082624,-500.0,0.00010363,2]
[347521322,1735899082634,-1012.61,0.00010363,2]
[347521323,1735899082643,-1140.29,0.00010363,2]
[347521324,1735899082654,-500.0,0.00010363,2]
[347521325,1735899082663,-2278.61,0.00010363,2]
[347521326,1735899082673,-500.0,0.00010363,2]
[347521327,1735899082682,-932.47,0.00010363,2]
[347521328,1735899082694,-500.0,0.00010363,2]
[347521329,1735899082704,-563.98,0.00010363,2]
[347521330,1735899082714,-1971.07,0.00010363,2]
[347521331,1735899082724,-868.76,0.00010363,2]
[347521332,1735899082733,-675.57,0.00010363,2]
[347521333,1735899082743,-500.0,0.00010363,2]
[347521334,1735899082754,-1949.24,0.00010363,2]
[347521335,1735899082765,-500.0,0.00010363,2]
[347521336,1735899082775,-500.0,0.00010363,2]
[347521337,1735899082785,-1022.48,0.00010363,2]
[347521338,1735899082794,-456.88853114,0.00010363,2]
[347521339,1735899082804,-1644.67,0.00010363,2]
[347521340,1735899082815,-1142.02,0.00010363,2]
[347521341,1735899082824,-589.18,0.00010363,2]
[347521342,1735899082834,-500.0,0.00010363,2]
[347521343,1735899082844,-894.74,0.00010363,2]
[347521344,1735899082854,-1175.17,0.00010363,2]
[347521345,1735899082864,-500.0,0.00010363,2]
[347521346,1735899082874,-1975.39,0.00010363,2]
[347521347,1735899082884,-1210.29,0.00010363,2]
[347521348,1735899082895,-1116.18,0.00010363,2]
[347521349,1735899082905,-500.0,0.00010363,2]
[347521350,1735899082915,-628.77862188,0.00010363,2]
[347521351,1735899082925,-1173.56,0.00010363,2]
[347521352,1735899082935,-577.12,0.00010363,2]
[347521353,1735899082945,-600.51,0.00010363,2]
[347521354,1735899082954,-500.0,0.00010363,2]
[347521355,1735899082964,-739.18,0.00010363,2]
[347521356,1735899082974,-519.15,0.00010363,2]
[347521357,1735899082984,-500.0,0.00010363,2]
[347521358,1735899082994,-869.67,0.00010363,2]
[347521359,1735899083004,-500.0,0.00010363,2]
[347521360,1735899083015,-1873.32,0.00010363,2]
[347521361,1735899083024,-500.0,0.00010363,2]
[347521362,1735899083034,-500.0,0.00010363,2]
[347521363,1735899083045,-867.14,0.00010363,2]
[347521364,1735899083056,-1378.53,0.00010363,2]
[347521365,1735899083067,-500.0,0.00010363,2]
[347521366,1735899083077,-500.0,0.00010363,2]
[347521367,1735899083087,-500.0,0.00010363,2]
[347521368,1735899083097,-500.0,0.00010363,2]
[347521369,1735899083107,-750.91,0.00010363,2]
[347521370,1735899083116,-500.0,0.00010363,2]
[347521371,1735899083126,-2478.91,0.00010363,2]
[347521372,1735899083135,-500.0,0.00010363,2]
[347521373,1735899083145,-500.0,0.00010363,2]
[347521374,1735899083155,-500.0,0.00010363,2]
[347521375,1735899083164,-500.0,0.00010363,2]
[347521376,1735899083174,-2210.58,0.00010363,2]
[347521377,1735899083184,-500.0,0.00010363,2]
[347521378,1735899083193,-500.0,0.00010363,2]
[347521379,1735899083203,-500.0,0.00010363,2]
[347521380,1735899083213,-534.88,0.00010363,2]
[347521381,1735899083223,-639.75,0.00010363,2]
[347521382,1735899083234,-500.0,0.00010363,2]
[347521383,1735899083244,-1309.77,0.00010363,2]
[347521384,1735899083253,-500.0,0.00010363,2]
[347521385,1735899083263,-500.0,0.00010363,2]
[347521386,1735899083273,-170.97167542,0.00010363,2]
[347521387,1735899083284,-500.0,0.00010363,2]
[347521388,1735899083294,-636.37,0.00010363,2]
[347521389,1735899083305,-500.0,0.00010363,2]
[347521390,1735899083315,-1498.0,0.00010363,2]
[347521391,1735899083325,-500.0,0.00010363,2]
[347521392,1735899083334,-2334.84,0.00010363,2]
[347521393,1735899083344,-593.46,0.00010363,2]
[347521394,1735899083356,-500.0,0.00010363,2]
[347521395,1735899083365,-500.0,0.00010363,2]
[347521396,1735899083375,-797.27,0.00010363,2]
[347521397,1735899083385,-500.0,0.00010363,2]
[347521398,1735899083395,-500.0,0.00010363,2]
[347521399,1735899083404,-500.0,0.00010363,2]
[347521400,1735899083414,-997.48,0.00010363,2]
[347521401,1735899083423,-749.14,0.00010363,2]
[347521402,1735899083432,-895.35,0.00010363,2]
[347521403,1735899083442,-1182.52,0.00010363,2]
[347521404,1735899083453,-541.95,0.00010363,2]
[347521405,1735899083463,-504.78,0.00010363,2]
[347521406,1735899083473,-704.61,0.00010363,2]
[347521407,1735899083483,-933.92,0.00010363,2]
[347521408,1735899083493,-1126.99,0.00010363,2]
[347521409,1735899083503,-500.0,0.00010363,2]
[347521410,1735899083513,-1257.34,0.00010363,2]
[347521411,1735899083523,-641.11,0.00010363,2]
[347521412,1735899083532,-642.42,0.00010363,2]
[347521413,1735899083543,-564.16,0.00010363,2]
[347521414,1735899083553,-2527.17,0.00010363,2]
[347521415,1735899083564,-1057.92968566,0.00010363,2]
[347521416,1735899083580,-270.36031434,0.00010363,2]
[347521417,1735899083591,-203.23968566,0.00010363,2]
[347521418,1735899084504,-689.3,9.267e-05,2]
[347521419,1735899084517,-481.063585,9.267e-05,2]
[347521420,1735899084611,-5818.356415,9.267e-05,2]
[347521421,1735899084621,-6988.72,9.541e-05,2]
[347521422,1735899084630,-456.844,9.609e-05,2]
[347521423,1735899084640,-6988.72,9.815e-05,2]
[347521424,1735899084649,-584.07031434,0.00010363,2]
[347521425,1735899084660,-861.34,0.00010363,2]
[347521426,1735899084669,-500.0,0.00010363,2]
[347521427,1735899084678,-500.0,0.00010363,2]
[347521428,1735899084688,-1626.55,0.00010363,2]
[347521429,1735899084697,-558.89,0.00010363,2]
[347521430,1735899084706,-500.0,0.00010363,2]
[347521431,1735899084716,-500.0,0.00010363,2]
[347521432,1735899084727,-500.0,0.00010363,2]
[347521433,1735899084736,-1386.59,0.00010363,2]
[347521434,1735899084746,-2785.41,0.00010363,2]
[347521435,1735899084756,-500.0,0.00010363,2]
[347521436,1735899084767,-875.27,0.00010363,2]
[347521437,1735899084776,-1181.19,0.00010363,2]
[347521438,1735899084786,-510.24,0.00010363,2]
[347521439,1735899084796,-1343.36,0.00010363,2]
[347521440,1735899084807,-500.0,0.00010363,2]
[347521441,1735899084818,-806.48,0.00010363,2]
[347521442,1735899084827,-2797.05,0.00010363,2]
[347521443,1735899084837,-1493.46,0.00010363,2]
[347521444,1735899084847,-542.59,0.00010363,2]
[347521445,1735899084856,-3492.68,0.00010363,2]
[347521446,1735899084866,-500.0,0.00010363,2]
[347521447,1735899084875,-784.4,0.00010363,2]
[347521448,1735899084886,-1640.36,0.00010363,2]
[347521449,1735899084895,-1143.63,0.00010363,2]
[347521450,1735899084904,-979.99,0.00010363,2]
[347521451,1735899084913,-549.8,0.00010363,2]
[347521452,1735899084922,-2052.03,0.00010363,2]
[347521453,1735899084931,-500.0,0.00010363,2]
[347521454,1735899084940,-500.0,0.00010363,2]
[347521455,1735899084949,-967.71,0.00010363,2]
[347521456,1735899084959,-1095.92,0.00010363,2]
[347521457,1735899084968,-794.44,0.00010363,2]
[347521458,1735899084977,-2811.56,0.00010363,2]
[347521459,1735899084986,-1778.85,0.00010363,2]
[347521460,1735899084995,-631.14322312,0.00010363,2]
[347521461,1735899085004,-1250.77,0.00010363,2]
[347521462,1735899085014,-500.0,0.00010363,2]
[347521463,1735899085024,-756.38,0.00010363,2]
[347521464,1735899085033,-612.54,0.00010363,2]
[347521465,1735899085042,-822.38,0.00010363,2]
[347521466,1735899085051,-657.68,0.00010363,2]
[347521467,1735899085061,-500.0,0.00010363,2]
[347521468,1735899085070,-500.0,0.00010363,2]
[347521469,1735899085079,-2328.96,0.00010363,2]
[347521470,1735899085088,-3102.7,0.00010363,2]
[347521471,1735899085098,-667.58,0.00010363,2]
[347521472,1735899085107,-441.23252965,0.00010363,2]
[347521473,1735899085117,-1026.14,0.00010363,2]
[347521474,1735899085126,-500.0,0.00010363,2]
[347521475,1735899085135,-736.76,0.00010363,2]
[347521476,1735899085145,-675.27,0.00010363,2]
[347521477,1735899085154,-500.0,0.00010363,2]
[347521478,1735899085164,-500.0,0.00010363,2]
[347521479,1735899085173,-1911.43,0.00010363,2]
[347521480,1735899085183,-813.26,0.00010363,2]
[347521481,1735899085192,-500.0,0.00010363,2]
[347521482,1735899085202,-774.31,0.00010363,2]